bitfinex/quotes_SOLUSD_20250928
["timestamp","ask_amount","ask_price","bid_price","bid_amount"]
[1759065825740,26.0,200.26,200.18,18.59103154]
[1759065825959,26.1,200.26,200.2,0.7]
[1759065826263,26.0,200.25,200.2,0.7]
[1759065827170,26.1,200.25,200.2,0.7]
[1759065828573,0.1,200.24,200.18,14.29559401]
[1759065828876,26.1,200.25,200.19,0.7]
[1759065829548,26.0,200.24,200.19,0.7]
[1759065829757,26.0,200.24,200.17,4.99572017]
[1759065829758,26.1,200.24,200.17,0.7]
[1759065830074,26.1,200.23,200.17,0.7]
[1759065830876,26.0,200.23,200.17,5.69572107]
[1759065831063,26.1,200.26,200.18,0.71]
[1759065831246,64.82,200.26,200.18,0.71]
[1759065831574,26.1,200.26,200.18,0.71]
[1759065833069,0.1,200.25,200.18,0.71]
[1759065833868,0.1,200.29,200.19,13.59559401]
[1759065834172,13.59559401,200.3,200.2,0.71]
[1759065834363,3.46817413,200.29,200.2,0.71]
[1759065834672,26.0,200.27,200.2,0.71]
[1759065835267,0.1,200.26,200.2,0.71]
[1759065835474,26.1,200.26,200.2,0.71]
[1759065835651,26.0,200.26,200.17,4.99570944]
[1759065835848,0.1,200.25,200.18,0.71]
[1759065836049,0.1,200.24,200.18,0.71]
[1759065836272,26.1,200.24,200.18,0.71]
[1759065836662,26.0,200.23,200.18,0.71]
[1759065837376,26.0,200.23,200.19,0.71]
[1759065837581,26.0,200.23,200.17,0.71]
[1759065839252,26.0,200.23,200.17,5.70569828]
[1759065839453,26.0,200.26,200.18,0.71]
[1759065839662,0.1,200.25,200.18,0.71]
[1759065840151,26.1,200.25,200.18,0.71]
[1759065840461,0.1,200.25,200.18,0.71]
[1759065840863,26.1,200.25,200.18,0.71]
[1759065841064,26.1,200.25,200.18,5.70546264]
[1759065841268,26.1,200.25,200.19,0.71]
[1759065841876,26.0,200.25,200.19,0.71]
[1759065843478,42.96797959,200.27,200.19,5.70525038]
[1759065843681,26.0,200.27,200.2,14.30559401]
[1759065843884,26.0,200.27,200.21,0.71]
[1759065844764,26.0,200.27,200.21,5.70473633]
[1759065844964,26.0,200.27,200.22,0.71]
[1759065845453,3.37202756,200.29,200.23,13.59559401]
[1759065845656,3.47202756,200.31,200.24,0.71]
[1759065845878,26.0,200.28,200.24,0.71]
[1759065846382,26.0,200.29,200.24,0.71]
[1759065846583,26.0,200.29,200.25,0.71]
[1759065846976,26.0,200.28,200.25,0.71]
[1759065848070,26.0,200.29,200.25,0.71]
[1759065850385,26.0,200.29,200.26,0.71]
[1759065850563,0.1,200.28,200.21,0.71]
[1759065852669,0.1,200.28,200.21,5.7046956]
[1759065852976,26.0,200.29,200.22,0.67]
[1759065853183,29.36937026,200.29,200.22,0.67]
[1759065853483,26.0,200.29,200.22,0.67]
[1759065854296,0.1,200.36,200.23,13.59559401]
[1759065854463,3.36726276,200.37,200.25,13.59559401]
[1759065854792,4.1810746,200.4,200.24,18.14902516]
[1759065854793,26.0,200.34,200.27,13.59559401]
[1759065855084,26.0,200.34,200.29,13.59559401]
[1759065855480,3.36726276,200.38,200.3,0.67]
[1759065855691,26.0,200.36,200.3,0.67]
[1759065856181,26.0,200.36,200.3,5.66249321]
[1759065856376,26.0,200.36,200.31,0.67]
[1759065857687,26.1,200.36,200.31,0.67]
[1759065857890,26.1,200.36,200.3,4.99249321]
[1759065857891,26.1,200.36,200.29,0.67]
[1759065858090,0.1,200.36,200.29,0.67]
[1759065858274,26.0,200.35,200.29,0.67]
[1759065858981,26.0,200.35,200.29,5.6626505]
[1759065859181,26.0,200.35,200.3,0.67]
[1759065859719,26.0,200.35,200.31,0.67]
[1759065859889,26.0,200.34,200.31,0.67]
[1759065860070,13.59559401,200.37,200.3,13.59559401]
[1759065860269,26.0,200.36,200.32,0.67]
[1759065860973,13.59559401,200.39,200.32,4.99190351]
[1759065861303,26.1,200.39,200.33,0.67]
[1759065861471,0.1,200.39,200.33,0.67]
[1759065861898,26.1,200.39,200.33,0.67]
[1759065862194,26.0,200.38,200.33,0.67]
[1759065862895,41.01839754,200.41,200.33,0.67]
[1759065863080,26.0,200.41,200.34,4.99151442]
[1759065863284,26.0,200.39,200.34,4.99151442]
[1759065863489,26.0,200.39,200.35,0.67]
[1759065864296,0.1,200.39,200.33,0.67]
[1759065865081,38.48003194,200.41,200.33,5.66172855]
[1759065865294,38.58003194,200.41,200.34,0.67]
[1759065867798,26.0,200.4,200.34,5.6614201]
[1759065867996,26.0,200.39,200.34,5.6614201]
[1759065868491,26.0,200.39,200.35,0.67]
[1759065868694,26.0,200.39,200.34,4.9914201]
[1759065868695,26.0,200.39,200.33,4.99170666]
[1759065868892,26.0,200.39,200.31,13.59559401]
[1759065869091,26.0,200.39,200.32,0.67]
[1759065869291,26.0,200.38,200.32,0.67]
[1759065871002,26.0,200.38,200.33,4.99176359]
[1759065871206,26.0,200.38,200.34,0.67]
[1759065874308,0.1,200.37,200.28,14.26559401]
[1759065874481,0.1,200.36,200.28,14.26559401]
[1759065874899,0.1,200.36,200.29,0.67]
[1759065875914,26.0,200.36,200.29,0.67]
[1759065876211,0.1,200.35,200.29,0.67]
[1759065876809,26.0,200.36,200.27,4.99319589]
[1759065876991,26.1,200.34,200.27,5.66319589]
[1759065878013,0.1,200.33,200.25,0.67]
[1759065878201,0.1,200.32,200.24,13.59559401]
[1759065878386,26.0,200.3,200.23,0.67]
[1759065878595,26.0,200.29,200.23,0.67]
[1759065878787,26.1,200.29,200.22,14.26559401]
[1759065879193,26.0,200.28,200.22,0.67]
[1759065880600,26.0,200.29,200.22,0.67]
[1759065880799,26.0,200.29,200.22,5.66428806]
[1759065880998,26.0,200.29,200.23,0.67]
[1759065882731,26.0,200.28,200.24,4.99400719]
[1759065882928,15.02516716,200.31,200.25,0.67]
[1759065883096,0.1,200.36,200.26,13.59559401]
[1759065883409,133.6,200.35,200.27,0.67]
[1759065883921,133.7,200.35,200.27,0.67]
[1759065884822,133.7,200.35,200.28,4.99300978]
[1759065885023,133.7,200.35,200.28,5.66300978]
[1759065886009,133.7,200.35,200.29,0.67]
[1759065889107,133.7,200.35,200.27,5.6632591]
[1759065889312,133.6,200.35,200.27,5.6632591]
[1759065889510,0.1,200.34,200.27,5.6632591]
[1759065889712,133.6,200.35,200.27,4.9932591]
[1759065889912,133.6,200.35,200.28,0.67]
[1759065891209,133.6,200.35,200.29,4.99276049]
[1759065891408,133.6,200.35,200.3,0.68]
[1759065891811,133.6,200.35,200.31,0.68]
[1759065892102,26.0,200.36,200.32,0.68]
[1759065892302,26.0,200.36,200.33,0.68]
[1759065892500,0.1,200.39,200.33,0.68]
[1759065892723,0.1,200.39,200.33,26.68]
[1759065893226,0.1,200.39,200.33,31.67163793]
[1759065893927,0.1,200.4,200.33,31.67163793]
[1759065894112,0.1,200.4,200.33,30.99163793]
[1759065894323,0.1,200.4,200.34,0.68]
[1759065895024,22.40131754,200.41,200.34,31.67148885]
[1759065895214,133.7,200.4,200.34,26.0]
[1759065895832,133.7,200.4,200.33,26.68]
[1759065896433,133.7,200.4,200.34,26.0]
[1759065897324,133.7,200.4,200.3,0.68]
[1759065897325,133.7,200.39,200.3,0.68]
[1759065897522,133.6,200.38,200.24,12.48451459]
[1759065897837,133.6,200.38,200.28,26.68]
[1759065897838,172.28,200.37,200.28,26.68]
[1759065898038,0.1,200.36,200.28,26.68]
[1759065898224,0.1,200.35,200.28,26.68]
[1759065898424,0.1,200.35,200.28,31.6729362]
[1759065899540,0.1,200.35,200.29,26.0]
[1759065899737,0.1,200.35,200.29,0.68]
[1759065900617,0.1,200.34,200.27,0.68]
[1759065900814,26.1,200.34,200.27,0.68]
[1759065902849,26.0,200.32,200.27,5.67317443]
[1759065903033,26.0,200.32,200.28,0.68]
[1759065903232,26.0,200.32,200.29,0.68]
[1759065903854,26.0,200.33,200.29,0.68]
[1759065904244,26.0,200.33,200.3,0.68]
[1759065904444,26.0,200.33,200.28,4.99282585]
[1759065904632,26.0,200.33,200.31,0.68]
[1759065904826,26.0,200.33,200.29,0.68]
[1759065906253,26.1,200.33,200.27,0.68]
[1759065906756,26.0,200.32,200.27,0.68]
[1759065907252,26.0,200.32,200.28,0.68]
[1759065907636,26.0,200.32,200.26,18.58904789]
[1759065907836,26.0,200.32,200.28,0.68]
[1759065908444,26.0,200.33,200.28,0.68]
[1759065908634,26.1,200.33,200.28,0.68]
[1759065908840,26.1,200.32,200.25,0.68]
[1759065909038,133.6,200.31,200.23,0.68]
[1759065909356,26.0,200.28,200.2,0.68]
[1759065909849,0.1,200.27,200.18,0.68]
[1759065910046,0.1,200.26,200.18,0.68]
[1759065910243,0.1,200.25,200.18,0.68]
[1759065910445,30.99303221,200.28,200.18,0.68]
[1759065910633,0.1,200.24,200.18,0.68]
[1759065911027,26.1,200.24,200.16,5.69597073]
[1759065911342,26.1,200.24,200.17,0.7]
[1759065911839,30.99321892,200.28,200.17,0.7]
[1759065912050,0.1,200.23,200.14,0.7]
[1759065912239,0.1,200.22,200.14,0.7]
[1759065913256,26.1,200.21,200.14,0.7]
[1759065913657,26.0,200.2,200.14,0.7]
[1759065913860,26.0,200.19,200.14,0.7]
[1759065914356,26.0,200.19,200.15,0.7]
[1759065914528,0.1,200.2,200.15,0.7]
[1759065914735,26.1,200.2,200.15,0.7]
[1759065915262,0.1,200.2,200.15,0.7]
[1759065916150,0.1,200.2,200.13,0.7]
[1759065917359,133.6,200.19,200.13,0.7]
[1759065917561,133.6,200.19,200.13,5.69673689]
[1759065917733,133.6,200.19,200.14,14.29559401]
[1759065917932,133.6,200.19,200.15,0.7]
[1759065918238,133.6,200.19,200.16,13.59559401]
[1759065918453,133.6,200.19,200.17,0.7]
[1759065918634,133.6,200.19,200.18,0.7]
[1759065919934,0.1,200.27,200.18,5.69550404]
[1759065920134,0.1,200.27,200.19,0.7]
[1759065920359,133.6,200.26,200.19,0.7]
[1759065921849,133.6,200.26,200.19,5.69511068]
[1759065922040,133.6,200.26,200.2,0.66]
[1759065923845,132.7,200.26,200.19,0.66]
[1759065925138,132.6,200.26,200.19,0.66]
[1759065925342,132.6,200.26,200.2,13.59559401]
[1759065925553,132.6,200.26,200.21,0.66]
[1759065925762,132.6,200.26,200.22,4.99450604]
[1759065925958,132.6,200.26,200.23,0.66]
[1759065926154,132.6,200.26,200.24,0.66]
[1759065928345,132.6,200.26,200.21,0.66]
[1759065928859,132.6,200.26,200.17,4.9957536]
[1759065929158,0.1,200.25,200.19,0.66]
[1759065930138,0.1,200.25,200.19,5.65523273]
[1759065931136,132.6,200.26,200.2,0.66]
[1759065931953,132.6,200.26,200.2,14.25559401]
[1759065932263,132.6,200.26,200.21,5.65457482]
[1759065932462,132.6,200.26,200.22,0.66]
[1759065933658,132.6,200.26,200.21,4.99457482]
[1759065933958,132.6,200.26,200.22,0.66]
[1759065934169,132.6,200.26,200.23,0.66]
[1759065937076,132.6,200.26,200.24,0.66]
[1759065938257,132.6,200.26,200.21,4.99457482]
[1759065938458,132.6,200.26,200.22,0.66]
[1759065939253,132.6,200.26,200.23,0.66]
[1759065939448,132.6,200.26,200.21,4.99457482]
[1759065939672,132.6,200.26,200.24,0.66]
[1759065940175,26.0,200.28,200.22,13.59559401]
[1759065940345,0.1,200.32,200.25,5.65363787]
[1759065940547,132.6,200.31,200.25,5.65363787]
[1759065940766,132.6,200.31,200.26,0.66]
[1759065940967,132.6,200.31,200.27,0.66]
[1759065942766,132.6,200.31,200.28,0.66]
[1759065944471,0.1,200.34,200.27,4.99321777]
[1759065944664,0.1,200.34,200.28,0.66]
[1759065944973,0.1,200.33,200.22,39.59559401]
[1759065945174,0.1,200.32,200.24,0.66]
[1759065945380,132.7,200.31,200.22,26.66]
[1759065945558,0.1,200.3,200.22,26.66]
[1759065945750,0.1,200.29,200.22,0.66]
[1759065947567,0.1,200.28,200.22,0.66]
[1759065948271,0.1,200.27,200.19,83.9507867]
[1759065948471,0.1,200.27,200.2,0.66]
[1759065950081,38.7,200.28,200.2,5.65497552]
[1759065950382,38.8,200.29,200.21,0.66]
[1759065950570,38.7,200.29,200.21,0.66]
[1759065951690,38.8,200.29,200.21,5.65464945]
[1759065951890,38.8,200.29,200.22,0.72]
[1759065952468,0.1,200.29,200.22,0.72]
[1759065953053,132.6,200.31,200.22,0.72]
[1759065953266,38.8,200.3,200.22,0.72]
[1759065955896,132.6,200.29,200.22,0.72]
[1759065956300,132.7,200.29,200.22,0.72]
[1759065957396,0.1,200.28,200.22,0.72]
[1759065957587,132.6,200.29,200.22,0.72]
[1759065957759,132.7,200.29,200.22,0.72]
[1759065959300,132.7,200.29,200.22,5.7144897]
[1759065959458,132.7,200.29,200.23,0.72]
[1759065961792,132.6,200.28,200.23,0.72]
[1759065964590,132.6,200.28,200.24,0.72]
[1759065966403,132.7,200.28,200.24,0.72]
[1759065966604,132.6,200.28,200.25,0.72]
[1759065966888,132.6,200.33,200.25,0.72]
[1759065967586,132.7,200.33,200.25,0.72]
[1759065967897,132.7,200.33,200.25,5.71354115]
[1759065968192,132.7,200.33,200.26,0.72]
[1759065968799,132.7,200.33,200.26,5.71345253]
[1759065968999,132.7,200.33,200.27,0.72]
[1759065970270,0.1,200.32,200.24,13.59559401]
[1759065970470,0.1,200.31,200.23,0.72]
[1759065970676,0.1,200.3,200.23,0.72]
[1759065970878,0.1,200.3,200.23,5.71423855]
[1759065971388,0.1,200.3,200.24,0.7]
[1759065971976,0.1,200.29,200.23,13.59559401]
[1759065972173,0.1,200.28,200.22,0.7]
[1759065972484,0.1,200.27,200.2,0.7]
[1759065972689,0.1,200.26,200.2,0.7]
[1759065973768,13.59559401,200.29,200.2,0.7]
[1759065973974,26.1,200.3,200.2,0.7]
[1759065974173,38.68,200.29,200.2,0.7]
[1759065974385,42.04989745,200.29,200.2,5.69494023]
[1759065974694,42.14989745,200.29,200.21,0.7]
[1759065974904,0.1,200.28,200.21,0.7]
[1759065976100,26.0,200.27,200.21,0.7]
[1759065976784,3.36981918,200.29,200.19,0.7]
[1759065976785,0.1,200.26,200.19,0.7]
[1759065976980,0.1,200.28,200.19,5.69519575]
[1759065977188,26.1,200.28,200.2,0.7]
[1759065977705,132.6,200.27,200.2,0.7]
[1759065978181,0.1,200.26,200.2,0.7]
[1759065978376,0.1,200.25,200.17,13.59559401]
[1759065978581,0.1,200.25,200.18,0.7]
[1759065979692,132.7,200.27,200.18,5.6954088]
[1759065979891,132.7,200.27,200.19,0.7]
[1759065982685,132.6,200.26,200.19,0.7]
[1759065983093,132.7,200.26,200.19,0.7]
[1759065988712,132.6,200.25,200.19,0.7]
[1759065989114,132.6,200.25,200.19,5.69516275]
[1759065991092,132.7,200.25,200.19,5.69516275]
[1759065991724,132.6,200.25,200.2,0.69]
[1759065992508,132.6,200.25,200.21,0.69]
[1759065992712,132.6,200.25,200.17,69.76073163]
[1759065992713,132.7,200.25,200.19,0.69]
[1759065993012,0.1,200.24,200.19,0.69]
[1759065993199,0.1,200.23,200.18,0.69]
[1759065993512,0.1,200.24,200.19,0.69]
[1759065993714,132.7,200.23,200.14,0.69]
[1759065993894,0.1,200.22,200.14,0.69]
[1759065994210,0.1,200.21,200.14,0.69]
[1759065994393,171.38,200.23,200.14,0.69]
[1759065994802,132.7,200.23,200.14,0.69]
[1759065995000,0.1,200.22,200.14,0.69]
[1759065995715,0.1,200.22,200.15,4.99625281]
[1759065996013,0.1,200.22,200.16,0.69]
[1759065996517,0.1,200.21,200.14,5.68645576]
[1759065996813,0.1,200.21,200.15,0.69]
[1759065999618,0.1,200.21,200.15,5.6862422]
[1759065999806,132.7,200.23,200.16,0.69]
[1759066000603,132.7,200.22,200.16,0.69]
[1759066001319,0.71,200.21,200.15,4.1862422]
[1759066001519,0.71,200.21,200.14,4.99645464]
[1759066002014,0.71,200.21,200.12,26.0880985]
[1759066002222,0.71,200.21,200.13,18.59234612]
[1759066003199,0.71,200.21,200.13,18.09234612]
[1759066003398,0.71,200.21,200.14,5.6863827]
[1759066003599,0.71,200.21,200.15,0.69]
[1759066004922,0.71,200.21,200.15,5.68616353]
[1759066005122,0.71,200.21,200.16,0.69]
[1759066005323,0.71,200.21,200.17,0.69]
[1759066007620,133.31,200.22,200.15,4.99622571]
[1759066007829,133.31,200.22,200.18,0.69]
[1759066008208,0.71,200.21,200.17,0.69]
[1759066009138,0.71,200.2,200.15,0.69]
[1759066009432,133.31,200.22,200.15,0.69]
[1759066010833,133.31,200.22,200.15,5.68622525]
[1759066011013,0.69,200.21,200.15,4.99622525]
[1759066011219,0.69,200.21,200.16,0.67]
[1759066011419,0.69,200.21,200.17,0.67]
[1759066012111,0.69,200.2,200.16,0.67]
[1759066012712,0.69,200.21,200.13,13.59559401]
[1759066012936,0.69,200.21,200.17,0.67]
[1759066013828,132.6,200.22,200.13,4.99674292]
[1759066014033,0.69,200.2,200.15,0.67]
[1759066014220,0.69,200.21,200.15,0.67]
[1759066017729,0.69,200.21,200.14,0.67]
[1759066018332,39.35,200.21,200.14,0.67]
[1759066018640,38.66,200.2,200.12,0.67]
[1759066018826,39.35,200.2,200.12,0.67]
[1759066019034,26.0,200.19,200.12,0.67]
[1759066019232,64.66,200.19,200.12,0.67]
[1759066019530,0.69,200.18,200.12,0.67]
[1759066020451,132.6,200.17,200.09,0.67]
[1759066020619,26.0,200.14,200.09,0.67]
[1759066020943,26.0,200.14,200.07,0.1]
[1759066021127,0.69,200.13,200.08,0.67]
[1759066021935,0.69,200.12,200.08,0.67]
[1759066022642,0.69,200.11,200.07,0.1]
[1759066022850,0.69,200.11,200.07,0.77]
[1759066023548,0.69,200.13,200.08,0.67]
[1759066024527,0.69,200.13,200.07,0.1]
[1759066024831,0.69,200.13,200.08,0.67]
[1759066025221,0.69,200.13,200.07,0.1]
[1759066025425,0.69,200.13,200.07,0.77]
[1759066026338,0.69,200.13,200.07,0.1]
[1759066026544,26.0,200.12,200.07,0.1]
[1759066026718,0.69,200.11,200.07,0.1]
[1759066026924,0.69,200.1,200.07,0.1]
[1759066027648,38.68,200.12,200.07,0.1]
[1759066027831,26.0,200.09,200.07,0.1]
[1759066028354,26.0,200.14,200.07,0.1]
[1759066028646,158.6,200.13,200.07,0.1]
[1759066028841,132.6,200.13,200.07,0.1]
[1759066029050,26.0,200.09,200.07,0.1]
[1759066029440,0.69,200.08,200.07,0.1]
[1759066029624,65.37,200.08,200.07,0.1]
[1759066029831,26.69,200.08,200.07,0.1]
[1759066030029,65.37,200.08,200.07,0.1]
[1759066030446,0.69,200.08,200.07,0.1]
[1759066030649,39.37,200.08,200.07,0.1]
[1759066031049,0.69,200.08,200.07,0.1]
[1759066031658,39.37,200.08,200.07,0.1]
[1759066032033,0.69,200.08,200.07,0.1]
[1759066032379,39.37,200.08,200.07,0.1]
[1759066032554,0.69,200.08,200.07,0.1]
[1759066032857,39.37,200.08,200.07,0.1]
[1759066033555,0.69,200.08,200.07,0.1]
[1759066033744,39.37,200.08,200.07,0.1]
[1759066033941,132.6,200.09,200.07,0.1]
[1759066034139,171.28,200.09,200.07,0.1]
[1759066034343,133.29,200.09,200.07,0.1]
[1759066034548,171.97,200.09,200.07,0.1]
[1759066034747,133.29,200.09,200.07,0.1]
[1759066035254,0.69,200.08,200.07,0.1]
[1759066035781,39.37,200.08,200.07,0.1]
[1759066035934,0.69,200.08,200.07,0.1]
[1759066036334,39.37,200.08,200.07,0.1]
[1759066036555,0.69,200.08,200.07,0.1]
[1759066036857,44.36800079,200.08,200.07,0.1]
[1759066037638,5.68800079,200.08,200.07,0.1]
[1759066037853,44.36800079,200.08,200.07,0.1]
[1759066038251,0.69,200.08,200.07,0.1]
[1759066038449,39.37,200.08,200.07,0.1]
[1759066038842,0.69,200.08,200.07,0.1]
[1759066039059,39.37,200.08,200.07,0.1]
[1759066039561,26.69,200.11,200.07,0.1]
[1759066039764,0.69,200.11,200.07,0.1]
[1759066039942,26.0,200.08,200.07,0.1]
[1759066040657,38.68,200.08,200.07,0.1]
[1759066041649,64.68,200.09,200.07,0.1]
[1759066041941,26.0,200.09,200.07,0.1]
[1759066042142,38.68,200.08,200.07,0.1]
[1759066043251,64.68,200.08,200.07,0.1]
[1759066043766,26.0,200.08,200.07,0.1]
[1759066043945,64.68,200.08,200.07,0.1]
[1759066045464,26.7,200.08,200.07,0.1]
[1759066045669,65.38,200.08,200.07,0.1]
[1759066046170,26.7,200.08,200.07,0.1]
[1759066046357,65.38,200.08,200.07,0.1]
[1759066047466,70.37800079,200.08,200.07,0.1]
[1759066048548,83.9735948,200.08,200.07,0.1]
[1759066048746,47.29976377,200.08,200.07,0.1]
[1759066049573,85.97976377,200.08,200.07,0.1]
[1759066050466,47.29976377,200.08,200.07,0.1]
[1759066050663,26.0,200.08,200.07,0.1]
[1759066051050,64.68,200.08,200.07,0.1]
[1759066051256,26.7,200.08,200.07,0.1]
[1759066051457,65.38,200.08,200.07,0.1]
[1759066052578,64.68,200.08,200.07,0.1]
[1759066052750,26.0,200.08,200.07,0.1]
[1759066053152,64.68,200.08,200.07,0.1]
[1759066055049,4.99775904,200.09,200.07,0.1]
[1759066055258,64.68,200.08,200.07,0.1]
[1759066056977,64.68,200.08,200.07,0.78]
[1759066057279,26.0,200.08,200.07,0.78]
[1759066057786,64.68,200.08,200.07,0.78]
[1759066059751,2.00586716,200.11,200.07,0.78]
[1759066059970,4.99675211,200.13,200.07,0.78]
[1759066060172,26.0,200.09,200.07,0.78]
[1759066060379,38.68,200.08,200.07,0.78]
[1759066060887,38.68,200.09,200.07,0.78]
[1759066061196,38.68,200.09,200.08,0.68]
[1759066061692,26.0,200.1,200.08,0.68]
[1759066061858,38.68,200.09,200.08,0.68]
[1759066062665,26.0,200.1,200.08,0.68]
[1759066062863,38.68,200.09,200.08,0.68]
[1759066063760,133.6,200.09,200.08,0.68]
[1759066063969,0.7,200.14,200.08,0.68]
[1759066063970,4.99650851,200.14,200.08,0.68]
[1759066064364,26.0,200.12,200.08,0.68]
[1759066064688,38.68,200.11,200.08,0.68]
[1759066066675,26.0,200.12,200.08,0.68]
[1759066067195,64.68,200.12,200.08,0.68]
[1759066067380,26.0,200.12,200.08,0.68]
[1759066067563,64.68,200.12,200.08,0.68]
[1759066072294,26.0,200.13,200.08,0.68]
[1759066073185,4.64085649,200.17,200.08,0.68]
[1759066073392,26.0,200.14,200.08,0.68]
[1759066073986,29.37120282,200.14,200.08,0.68]
[1759066077183,0.72,200.13,200.08,0.68]
[1759066077583,0.72,200.13,200.09,0.72]
[1759066077786,133.6,200.12,200.09,0.72]
[1759066078186,133.6,200.12,200.1,0.72]
[1759066078514,133.6,200.12,200.08,0.72]
[1759066078805,133.6,200.12,200.07,0.1]
[1759066078806,133.6,200.12,200.09,0.72]
[1759066082188,176.35016566,200.11,200.07,0.1]
[1759066082389,133.6,200.1,200.07,0.1]
[1759066082587,38.66,200.09,200.07,0.1]
[1759066082894,38.66,200.08,200.07,0.1]
[1759066083280,39.38,200.08,200.07,0.1]
[1759066085513,133.6,200.1,200.07,0.1]
[1759066085514,134.32,200.1,200.07,0.1]
[1759066085888,133.6,200.1,200.08,0.72]
[1759066086083,133.6,200.1,200.07,0.1]
[1759066086393,172.26,200.1,200.07,0.1]
[1759066086598,133.6,200.1,200.08,0.72]
[1759066087409,133.6,200.1,200.07,0.1]
[1759066087589,133.6,200.1,200.07,0.82]
[1759066089402,0.72,200.09,200.07,0.1]
[1759066089612,133.6,200.08,200.07,0.1]
[1759066094411,26.0,200.16,200.07,5.80825061]
[1759066094610,3.36937044,200.16,200.08,40.30559401]
[1759066094814,3.36808294,200.22,200.13,26.0]
[1759066095114,0.67,200.25,200.14,0.71]
[1759066095308,38.82,200.24,200.14,0.71]
[1759066095491,39.49,200.24,200.15,13.59559401]
[1759066095812,0.67,200.23,200.15,14.30559401]
[1759066096013,0.67,200.22,200.15,14.30559401]
[1759066096188,0.67,200.22,200.15,0.71]
[1759066096391,0.67,200.22,200.15,14.30559401]
[1759066097412,0.67,200.22,200.16,0.71]
[1759066101090,39.45,200.23,200.16,0.71]
[1759066101516,41.71235683,200.27,200.17,13.59559401]
[1759066101716,41.71235683,200.27,200.19,39.59559401]
[1759066102014,41.71235683,200.27,200.24,26.0]
[1759066102205,41.71235683,200.27,200.25,14.25559401]
[1759066102407,41.71235683,200.27,200.26,14.25559401]
[1759066102590,41.71235683,200.27,200.26,19.24910244]
[1759066102792,41.71235683,200.27,200.26,34.27276471]
[1759066103822,8.32737216,200.27,200.26,34.27276471]
[1759066104006,0.2,200.34,200.26,34.27276471]
[1759066104007,0.2,200.34,200.27,39.59559401]